Workbook

Sheet 리모델링 비용
B1: 주방 리모델링 비용 워크시트
B3: 범주 | C3: 항목 | D3: 수량 | E3: 예상 비용 | F3: 실제 비용 | G3: 총 예상 비용 | H3: 총 실제 비용
B4: 캐비닛 | C4: 기본 캐비닛: 모듈-표준(피트) | D4: 25 | E4: ₩5.00 | G4: =데이터[[#This Row],[수량]]*데이터[[#This Row],[예상 비용]] -> ₩125 | H4: =데이터[[#This Row],[수량]]*데이터[[#This Row],[실제 비용]] -> ₩0
B5: 캐비닛 | C5: 상부 캐비닛: 모듈-표준(피트) | D5: 25 | E5: ₩3.50 | G5: =데이터[[#This Row],[수량]]*데이터[[#This Row],[예상 비용]] -> ₩88 | H5: =데이터[[#This Row],[수량]]*데이터[[#This Row],[실제 비용]] -> ₩0
B6: 세척 기기 | C6: 식기 세척기: 표준 | D6: 1 | E6: ₩250.00 | G6: =데이터[[#This Row],[수량]]*데이터[[#This Row],[예상 비용]] -> ₩250 | H6: =데이터[[#This Row],[수량]]*데이터[[#This Row],[실제 비용]] -> ₩0
B7: 세척 기기 | C7: 쓰레기 처리: 표준 | D7: 1 | E7: ₩175.00 | G7: =데이터[[#This Row],[수량]]*데이터[[#This Row],[예상 비용]] -> ₩175 | H7: =데이터[[#This Row],[수량]]*데이터[[#This Row],[실제 비용]] -> ₩0
B8: 조리 기기 | C8: 범위: 슬라이드 인 표준 | D8: 1 | E8: ₩375.00 | G8: =데이터[[#This Row],[수량]]*데이터[[#This Row],[예상 비용]] -> ₩375 | H8: =데이터[[#This Row],[수량]]*데이터[[#This Row],[실제 비용]] -> ₩0
B9: 조리 기기 | C9: 전자레인지: 표준 | D9: 1 | E9: ₩300.00 | G9: =데이터[[#This Row],[수량]]*데이터[[#This Row],[예상 비용]] -> ₩300 | H9: =데이터[[#This Row],[수량]]*데이터[[#This Row],[실제 비용]] -> ₩0
B10: 카운터 | C10: 단색 표면(피트) | D10: 23 | E10: ₩10.00 | G10: =데이터[[#This Row],[수량]]*데이터[[#This Row],[예상 비용]] -> ₩230 | H10: =데이터[[#This Row],[수량]]*데이터[[#This Row],[실제 비용]] -> ₩0
B11: 문 | C11: 인테리어: 베니어 솔리드 코어 | D11: 1 | E11: ₩65.00 | G11: =데이터[[#This Row],[수량]]*데이터[[#This Row],[예상 비용]] -> ₩65 | H11: =데이터[[#This Row],[수량]]*데이터[[#This Row],[실제 비용]] -> ₩0
B12: 기타 | C12: 기타: 급탕 표준 | D12: 1 | E12: ₩120.00 | G12: =데이터[[#This Row],[수량]]*데이터[[#This Row],[예상 비용]] -> ₩120 | H12: =데이터[[#This Row],[수량]]*데이터[[#This Row],[실제 비용]] -> ₩0
B13: 기타 | C13: 기타: 물비누 통 | D13: 1 | E13: ₩40.00 | G13: =데이터[[#This Row],[수량]]*데이터[[#This Row],[예상 비용]] -> ₩40 | H13: =데이터[[#This Row],[수량]]*데이터[[#This Row],[실제 비용]] -> ₩0
B14: 수도꼭지 | C14: 수도꼭지: 레버, 표준 | D14: 1 | E14: ₩130.00 | G14: =데이터[[#This Row],[수량]]*데이터[[#This Row],[예상 비용]] -> ₩130 | H14: =데이터[[#This Row],[수량]]*데이터[[#This Row],[실제 비용]] -> ₩0
B15: 바닥 | C15: 합판(제곱 피트) | D15: 165 | E15: ₩3.50 | G15: =데이터[[#This Row],[수량]]*데이터[[#This Row],[예상 비용]] -> ₩578 | H15: =데이터[[#This Row],[수량]]*데이터[[#This Row],[실제 비용]] -> ₩0
B16: 세탁 기기 | C16: 세탁기: 표준 | D16: 1 | E16: ₩500.00 | G16: =데이터[[#This Row],[수량]]*데이터[[#This Row],[예상 비용]] -> ₩500 | H16: =데이터[[#This Row],[수량]]*데이터[[#This Row],[실제 비용]] -> ₩0
B17: 세탁 기기 | C17: 건조기: 표준 | D17: 1 | E17: ₩375.00 | G17: =데이터[[#This Row],[수량]]*데이터[[#This Row],[예상 비용]] -> ₩375 | H17: =데이터[[#This Row],[수량]]*데이터[[#This Row],[실제 비용]] -> ₩0
B18: 조명 | C18: 조명: 우묵한 통 | D18: 4 | E18: ₩35.00 | G18: =데이터[[#This Row],[수량]]*데이터[[#This Row],[예상 비용]] -> ₩140 | H18: =데이터[[#This Row],[수량]]*데이터[[#This Row],[실제 비용]] -> ₩0
B19: 냉장고 | C19: 냉장고: 독립형, 고급 | D19: 1 | E19: ₩1,200.00 | G19: =데이터[[#This Row],[수량]]*데이터[[#This Row],[예상 비용]] -> ₩1,200 | H19: =데이터[[#This Row],[수량]]*데이터[[#This Row],[실제 비용]] -> ₩0
B20: 싱크대 | C20: 개수통이 두 개인 스테인레스 고급 | D20: 1 | E20: ₩125.00 | G20: =데이터[[#This Row],[수량]]*데이터[[#This Row],[예상 비용]] -> ₩125 | H20: =데이터[[#This Row],[수량]]*데이터[[#This Row],[실제 비용]] -> ₩0
B21: 환기 | C21: 후드 장치: 도관 표준 | D21: 1 | E21: ₩180.00 | G21: =데이터[[#This Row],[수량]]*데이터[[#This Row],[예상 비용]] -> ₩180 | H21: =데이터[[#This Row],[수량]]*데이터[[#This Row],[실제 비용]] -> ₩0
B22: 벽 | C22: 벽판(제곱 피트) | D22: 70 | E22: ₩2.00 | G22: =데이터[[#This Row],[수량]]*데이터[[#This Row],[예상 비용]] -> ₩140 | H22: =데이터[[#This Row],[수량]]*데이터[[#This Row],[실제 비용]] -> ₩0
B23: 창 | C23: 슬라이딩 | D23: 2 | E23: ₩120.00 | G23: =데이터[[#This Row],[수량]]*데이터[[#This Row],[예상 비용]] -> ₩240 | H23: =데이터[[#This Row],[수량]]*데이터[[#This Row],[실제 비용]] -> ₩0
B24: 기타 | G24: =데이터[[#This Row],[수량]]*데이터[[#This Row],[예상 비용]] -> ₩0 | H24: =데이터[[#This Row],[수량]]*데이터[[#This Row],[실제 비용]] -> ₩0
B25: 합계 | E25: =SUBTOTAL(109,데이터[예상 비용]) -> ₩4,014.00 | F25: =SUBTOTAL(109,데이터[실제 비용]) -> ₩0.00 | G25: =SUBTOTAL(109,데이터[총 예상 비용]) -> ₩5,375.00 | H25: =SUBTOTAL(109,데이터[총 실제 비용]) -> ₩0.00
B26: 소계 | G26: =SUBTOTAL(109,데이터[총 예상 비용]) -> ₩5,375.00 | H26: =SUBTOTAL(109,데이터[총 실제 비용]) -> ₩0.00
B27: 예기치 않은 비용 - 30% 추가 | G27: =G26*0.3 -> ₩1,612.50 | H27: =H26*0.3 -> ₩0.00
B28: 합계 | G28: =SUM(G26:G27) -> ₩6,987.50 | H28: =SUM(H26:H27) -> ₩0.00
